[Event "Titled Tuesday Blitz January 31 Early 2023"]
[White "Borrmann, Laurenz"]
[Black "Oganian, Miran"]
[WhiteFideId "312187930"]
[BlackFideId "4122488"]
[WhiteElo "2304"]
[BlackElo "2439"]
[Result "1-0"]
[Round "02"]
[TimeControl "180+2"]
[Date "2023.01.31"]
[WhiteClock "0:00:02"]
[BlackClock "0:00:01"]

1. d4 {[%clk 0:03:00]}  e6 {[%clk 0:02:59]} 2. c4 {[%clk 0:02:57]}  d5 {[%clk 0:02:59]} 3. Nf3 {[%clk 0:02:56]}  a6 {[%clk 0:02:59]} 4. cxd5 {[%clk 0:02:50]}  exd5 {[%clk 0:03:00]} 5. Nc3 {[%clk 0:02:51]}  Nf6 {[%clk 0:03:01]} 6. Bg5 {[%clk 0:02:49]}  c6 {[%clk 0:03:01]} 7. e3 {[%clk 0:02:41]}  Be7 {[%clk 0:03:01]} 8. Bd3 {[%clk 0:02:39]}  Nbd7 {[%clk 0:03:01]} 9. Qc2 {[%clk 0:02:32]}  O-O {[%clk 0:03:01]} 10. O-O {[%clk 0:02:32]}  Re8 {[%clk 0:03:02]} 11. Ne5 {[%clk 0:02:10]}  Nf8 {[%clk 0:03:00]} 12. Rad1 {[%clk 0:02:07]}  Ng4 {[%clk 0:02:59]} 13. Bxe7 {[%clk 0:01:56]}  Rxe7 {[%clk 0:03:00]} 14. Nxg4 {[%clk 0:01:45]}  Bxg4 {[%clk 0:03:01]} 15. Rde1 {[%clk 0:01:45]}  Bh5 {[%clk 0:03:00]} 16. b4 {[%clk 0:01:40]}  Bg6 {[%clk 0:02:59]} 17. Na4 {[%clk 0:01:36]}  a5 {[%clk 0:02:54]} 18. Bxg6 {[%clk 0:01:23]}  hxg6 {[%clk 0:02:51]} 19. a3 {[%clk 0:01:23]}  axb4 {[%clk 0:02:51]} 20. axb4 {[%clk 0:01:24]}  Qd6 {[%clk 0:02:36]} 21. Nb6 {[%clk 0:01:10]}  Rae8 {[%clk 0:02:32]} 22. Rb1 {[%clk 0:01:00]}  Ne6 {[%clk 0:02:26]} 23. b5 {[%clk 0:00:55]}  c5 {[%clk 0:02:23]} 24. dxc5 {[%clk 0:00:54]}  Nxc5 {[%clk 0:02:24]} 25. Rfc1 {[%clk 0:00:46]}  Qxb6 {[%clk 0:02:06]} 26. Qxc5 {[%clk 0:00:45]}  Qe6 {[%clk 0:02:01]} 27. Rd1 {[%clk 0:00:42]}  Rd7 {[%clk 0:01:59]} 28. Rd4 {[%clk 0:00:39]}  b6 {[%clk 0:01:50]} 29. Qb4 {[%clk 0:00:35]}  Rc8 {[%clk 0:01:49]} 30. Rbd1 {[%clk 0:00:35]}  Rc4 {[%clk 0:01:41]} 31. Rxc4 {[%clk 0:00:32]}  dxc4 {[%clk 0:01:41]} 32. Rxd7 {[%clk 0:00:32]}  Qxd7 {[%clk 0:01:42]} 33. Qxc4 {[%clk 0:00:32]}  Qd1+ {[%clk 0:01:39]} 34. Qf1 {[%clk 0:00:32]}  Qb3 {[%clk 0:01:40]} 35. g3 {[%clk 0:00:30]}  g5 {[%clk 0:01:40]} 36. Qe2 {[%clk 0:00:29]}  f5 {[%clk 0:01:38]} 37. h3 {[%clk 0:00:27]}  Kh7 {[%clk 0:01:31]} 38. Qh5+ {[%clk 0:00:23]}  Kg8 {[%clk 0:01:31]} 39. Qe8+ {[%clk 0:00:22]}  Kh7 {[%clk 0:01:31]} 40. Qc6 {[%clk 0:00:21]}  g4 {[%clk 0:01:22]} 41. hxg4 {[%clk 0:00:19]}  fxg4 {[%clk 0:01:22]} 42. Kg2 {[%clk 0:00:19]}  Qb1 {[%clk 0:01:20]} 43. e4 {[%clk 0:00:15]}  Qd3 {[%clk 0:01:15]} 44. e5 {[%clk 0:00:15]}  Qe2 {[%clk 0:01:10]} 45. Qd5 {[%clk 0:00:14]}  Kg6 {[%clk 0:01:07]} 46. Qe6+ {[%clk 0:00:13]}  Kh7 {[%clk 0:01:07]} 47. Qf5+ {[%clk 0:00:12]}  g6 {[%clk 0:01:07]} 48. Qf7+ {[%clk 0:00:12]}  Kh8 {[%clk 0:01:00]} 49. Qf4 {[%clk 0:00:07]}  Qxb5 {[%clk 0:00:55]} 50. Qh6+ {[%clk 0:00:08]}  Kg8 {[%clk 0:00:54]} 51. Qxg6+ {[%clk 0:00:08]}  Kf8 {[%clk 0:00:55]} 52. Qf6+ {[%clk 0:00:08]}  Ke8 {[%clk 0:00:55]} 53. Qe6+ {[%clk 0:00:09]}  Kd8 {[%clk 0:00:55]} 54. Qd6+ {[%clk 0:00:09]}  Ke8 {[%clk 0:00:45]} 55. e6 {[%clk 0:00:09]}  Qa4 {[%clk 0:00:23]} 56. Qxb6 {[%clk 0:00:09]}  Qe4+ {[%clk 0:00:23]} 57. Kf1 {[%clk 0:00:10]}  Ke7 {[%clk 0:00:20]} 58. Qe3 {[%clk 0:00:07]}  Qb1+ {[%clk 0:00:11]} 59. Kg2 {[%clk 0:00:07]}  Qb7+ {[%clk 0:00:10]} 60. Kh2 {[%clk 0:00:08]}  Qb4 {[%clk 0:00:08]} 61. Qe5 {[%clk 0:00:06]}  Qd2 {[%clk 0:00:06]} 62. Kg2 {[%clk 0:00:04]}  Qd1 {[%clk 0:00:06]} 63. Qf5 {[%clk 0:00:04]}  Qe2 {[%clk 0:00:04]} 64. Qf7+ {[%clk 0:00:04]}  Kd6 {[%clk 0:00:03]} 65. e7 {[%clk 0:00:03]}  Qe4+ {[%clk 0:00:03]} 66. Kf1 {[%clk 0:00:04]}  Qb1+ {[%clk 0:00:02]} 67. Ke2 {[%clk 0:00:04]}  Qc2+ {[%clk 0:00:02]} 68. Ke3 {[%clk 0:00:03]}  Qc3+ {[%clk 0:00:01]} 69. Kf4 {[%clk 0:00:02]} 1-0


[Site "https://www.chess.com"]

[Event "Titled Tuesday Blitz January 31 Early 2023"]
[White "Roux, Baptiste"]
[Black "Kopylov, Alexander A."]
[WhiteFideId "36017450"]
[BlackFideId "4164857"]
[WhiteElo "2300"]
[BlackElo "2397"]
[Result "0-1"]
[Round "02"]
[TimeControl "180+2"]
[Date "2023.01.31"]
[WhiteClock "0:00:03"]
[BlackClock "0:00:37"]

1. e4 {[%clk 0:02:55]}  e5 {[%clk 0:02:58]} 2. Nf3 {[%clk 0:02:54]}  Nc6 {[%clk 0:02:57]} 3. Bb5 {[%clk 0:02:53]}  a6 {[%clk 0:02:58]} 4. Ba4 {[%clk 0:02:53]}  d6 {[%clk 0:02:58]} 5. O-O {[%clk 0:02:43]}  Bd7 {[%clk 0:02:58]} 6. d3 {[%clk 0:02:43]}  g6 {[%clk 0:02:58]} 7. Re1 {[%clk 0:02:39]}  Bg7 {[%clk 0:02:58]} 8. Nbd2 {[%clk 0:02:39]}  Nf6 {[%clk 0:02:54]} 9. Nf1 {[%clk 0:02:37]}  Nh5 {[%clk 0:02:54]} 10. Ng3 {[%clk 0:02:33]}  Nxg3 {[%clk 0:02:54]} 11. hxg3 {[%clk 0:02:32]}  O-O {[%clk 0:02:54]} 12. c3 {[%clk 0:02:24]}  h6 {[%clk 0:02:48]} 13. Bb3 {[%clk 0:02:12]}  Kh7 {[%clk 0:02:45]} 14. d4 {[%clk 0:02:06]}  Bg4 {[%clk 0:02:44]} 15. Be3 {[%clk 0:01:50]}  f5 {[%clk 0:02:32]} 16. Bd5 {[%clk 0:01:21]}  f4 {[%clk 0:02:15]} 17. gxf4 {[%clk 0:01:17]}  exf4 {[%clk 0:02:15]} 18. Bd2 {[%clk 0:01:15]}  Rb8 {[%clk 0:02:00]} 19. Qe2 {[%clk 0:01:10]}  Ne7 {[%clk 0:01:56]} 20. Bb3 {[%clk 0:01:09]}  Kh8 {[%clk 0:01:41]} 21. Qd3 {[%clk 0:00:53]}  g5 {[%clk 0:01:40]} 22. e5 {[%clk 0:00:50]}  Bf5 {[%clk 0:01:40]} 23. Qe2 {[%clk 0:00:47]}  d5 {[%clk 0:01:39]} 24. c4 {[%clk 0:00:20]}  c6 {[%clk 0:01:35]} 25. Bc3 {[%clk 0:00:19]}  Ng6 {[%clk 0:01:26]} 26. Nh2 {[%clk 0:00:12]}  Qe7 {[%clk 0:01:13]} 27. cxd5 {[%clk 0:00:11]}  cxd5 {[%clk 0:01:13]} 28. Bxd5 {[%clk 0:00:11]}  b5 {[%clk 0:01:08]} 29. Be4 {[%clk 0:00:10]}  b4 {[%clk 0:01:08]} 30. Bxf5 {[%clk 0:00:09]}  Rxf5 {[%clk 0:01:09]} 31. Qe4 {[%clk 0:00:09]}  Nh4 {[%clk 0:01:09]} 32. Bd2 {[%clk 0:00:08]}  a5 {[%clk 0:01:05]} 33. Nf3 {[%clk 0:00:07]}  Nxf3+ {[%clk 0:01:03]} 34. Qxf3 {[%clk 0:00:08]}  Rd8 {[%clk 0:00:59]} 35. Qe4 {[%clk 0:00:05]}  Qe6 {[%clk 0:00:58]} 36. a3 {[%clk 0:00:06]}  f3 {[%clk 0:00:56]} 37. g4 {[%clk 0:00:04]}  Rf4 {[%clk 0:00:54]} 38. Bxf4 {[%clk 0:00:04]}  Rxd4 {[%clk 0:00:49]} 39. Qa8+ {[%clk 0:00:01]}  Kh7 {[%clk 0:00:48]} 40. Bg3 {[%clk 0:00:02]}  Qxg4 {[%clk 0:00:47]} 41. Re3 {[%clk 0:00:03]}  Rf4 {[%clk 0:00:39]} 42. e6 {[%clk 0:00:03]}  Bd4 {[%clk 0:00:39]} 43. Rxf3 {[%clk 0:00:03]}  Rxf3 {[%clk 0:00:38]} 44. e7 {[%clk 0:00:04]}  Qxg3+ {[%clk 0:00:39]} 45. Kh1 {[%clk 0:00:04]}  Qh3+ {[%clk 0:00:36]} 46. Kg1 {[%clk 0:00:04]}  Rg3+ {[%clk 0:00:37]} 47. Qg2 {[%clk 0:00:03]}  Qxg2# {[%clk 0:00:37]} 0-1


[Site "https://www.chess.com"]

[Event "Titled Tuesday Blitz January 31 Early 2023"]
[White "Biastoch, Bennet"]
[Black "Preotu, Razvan"]
[WhiteFideId "12939889"]
[BlackFideId "2613280"]
[WhiteElo "2257"]
[BlackElo "2475"]
[Result "1-0"]
[Round "02"]
[TimeControl "180+2"]
[Date "2023.01.31"]
[WhiteClock "0:00:26"]
[BlackClock "0:00:10"]

1. e4 {[%clk 0:03:00]}  c5 {[%clk 0:02:59]} 2. Nf3 {[%clk 0:03:00]}  d6 {[%clk 0:03:00]} 3. d4 {[%clk 0:02:59]}  cxd4 {[%clk 0:03:01]} 4. Nxd4 {[%clk 0:03:00]}  Nf6 {[%clk 0:03:01]} 5. Nc3 {[%clk 0:03:00]}  a6 {[%clk 0:03:01]} 6. Be3 {[%clk 0:03:00]}  e5 {[%clk 0:03:01]} 7. Nb3 {[%clk 0:02:59]}  Be6 {[%clk 0:03:01]} 8. f3 {[%clk 0:02:59]}  h5 {[%clk 0:03:01]} 9. Qd2 {[%clk 0:02:56]}  Nbd7 {[%clk 0:03:01]} 10. Be2 {[%clk 0:02:56]}  Rc8 {[%clk 0:02:56]} 11. O-O {[%clk 0:02:53]}  b5 {[%clk 0:02:53]} 12. Nd5 {[%clk 0:02:50]}  Bxd5 {[%clk 0:02:51]} 13. exd5 {[%clk 0:02:51]}  Nb6 {[%clk 0:02:52]} 14. a4 {[%clk 0:02:18]}  Nc4 {[%clk 0:02:40]} 15. Bxc4 {[%clk 0:02:14]}  bxc4 {[%clk 0:02:41]} 16. Na5 {[%clk 0:02:11]}  Qc7 {[%clk 0:02:41]} 17. b4 {[%clk 0:01:58]}  g6 {[%clk 0:01:47]} 18. c3 {[%clk 0:01:42]}  Bg7 {[%clk 0:01:33]} 19. Rfd1 {[%clk 0:01:41]}  O-O {[%clk 0:01:32]} 20. Qf2 {[%clk 0:01:41]}  e4 {[%clk 0:01:30]} 21. Bd4 {[%clk 0:01:27]}  Rfe8 {[%clk 0:01:15]} 22. Qh4 {[%clk 0:01:04]}  Nd7 {[%clk 0:00:50]} 23. Nc6 {[%clk 0:00:58]}  exf3 {[%clk 0:00:46]} 24. Ne7+ {[%clk 0:00:48]}  Rxe7 {[%clk 0:00:44]} 25. Qxe7 {[%clk 0:00:47]}  fxg2 {[%clk 0:00:40]} 26. Kxg2 {[%clk 0:00:42]}  Bf8 {[%clk 0:00:33]} 27. Qe4 {[%clk 0:00:41]}  Ne5 {[%clk 0:00:32]} 28. Bxe5 {[%clk 0:00:38]}  dxe5 {[%clk 0:00:33]} 29. b5 {[%clk 0:00:34]}  axb5 {[%clk 0:00:32]} 30. axb5 {[%clk 0:00:35]}  Rb8 {[%clk 0:00:30]} 31. Rdb1 {[%clk 0:00:28]}  Bc5 {[%clk 0:00:29]} 32. Qxc4 {[%clk 0:00:25]}  Qe7 {[%clk 0:00:29]} 33. Kh1 {[%clk 0:00:22]}  e4 {[%clk 0:00:29]} 34. Re1 {[%clk 0:00:21]}  e3 {[%clk 0:00:29]} 35. Rad1 {[%clk 0:00:19]}  Ra8 {[%clk 0:00:26]} 36. Qd3 {[%clk 0:00:20]}  Ra2 {[%clk 0:00:23]} 37. d6 {[%clk 0:00:20]}  Qh4 {[%clk 0:00:23]} 38. Re2 {[%clk 0:00:20]}  Rxe2 {[%clk 0:00:17]} 39. Qxe2 {[%clk 0:00:21]}  Qe4+ {[%clk 0:00:17]} 40. Kg1 {[%clk 0:00:21]}  Qg4+ {[%clk 0:00:12]} 41. Qxg4 {[%clk 0:00:21]}  e2+ {[%clk 0:00:13]} 42. Kg2 {[%clk 0:00:20]}  hxg4 {[%clk 0:00:11]} 43. Re1 {[%clk 0:00:20]}  Bxd6 {[%clk 0:00:11]} 44. Rxe2 {[%clk 0:00:21]}  f5 {[%clk 0:00:10]} 45. Rd2 {[%clk 0:00:21]}  Bc5 {[%clk 0:00:10]} 46. Rd5 {[%clk 0:00:22]}  Be3 {[%clk 0:00:10]} 47. c4 {[%clk 0:00:23]}  f4 {[%clk 0:00:11]} 48. c5 {[%clk 0:00:23]}  f3+ {[%clk 0:00:11]} 49. Kf1 {[%clk 0:00:24]}  Kf7 {[%clk 0:00:09]} 50. b6 {[%clk 0:00:24]}  Ke6 {[%clk 0:00:10]} 51. Rd3 {[%clk 0:00:24]}  Bxc5 {[%clk 0:00:10]} 52. b7 {[%clk 0:00:24]}  Ba7 {[%clk 0:00:10]} 53. Rd8 {[%clk 0:00:25]}  Kf5 {[%clk 0:00:10]} 54. b8=Q {[%clk 0:00:25]}  Bxb8 {[%clk 0:00:10]} 55. Rxb8 {[%clk 0:00:26]}  Kf4 {[%clk 0:00:10]} 56. Kf2 {[%clk 0:00:26]} 1-0


[Site "https://www.chess.com"]

[Event "Titled Tuesday Blitz January 31 Early 2023"]
[White "Beerdsen, Thomas"]
[Black "Ljukin, Sergei"]
[WhiteFideId "1030108"]
[BlackFideId "14102200"]
[WhiteElo "2507"]
[BlackElo "2362"]
[Result "1-0"]
[Round "02"]
[TimeControl "180+2"]
[Date "2023.01.31"]
[WhiteClock "0:01:07"]
[BlackClock "0:00:12"]

1. e4 {[%clk 0:02:58]}  e6 {[%clk 0:02:59]} 2. c4 {[%clk 0:02:58]}  d5 {[%clk 0:02:59]} 3. cxd5 {[%clk 0:02:58]}  exd5 {[%clk 0:03:00]} 4. Qb3 {[%clk 0:02:59]}  Nc6 {[%clk 0:02:57]} 5. exd5 {[%clk 0:02:57]}  Nb4 {[%clk 0:02:55]} 6. Nc3 {[%clk 0:02:52]}  Bf5 {[%clk 0:02:52]} 7. d3 {[%clk 0:02:50]}  Bxd3 {[%clk 0:02:43]} 8. Bxd3 {[%clk 0:02:38]}  Nxd3+ {[%clk 0:02:43]} 9. Kf1 {[%clk 0:02:33]}  Nc5 {[%clk 0:02:33]} 10. Qc4 {[%clk 0:02:31]}  Nf6 {[%clk 0:02:28]} 11. Bg5 {[%clk 0:02:28]}  Bd6 {[%clk 0:02:26]} 12. Re1+ {[%clk 0:02:27]}  Kf8 {[%clk 0:02:20]} 13. Nf3 {[%clk 0:02:25]}  h6 {[%clk 0:02:19]} 14. Be3 {[%clk 0:02:17]}  Ncd7 {[%clk 0:02:14]} 15. g3 {[%clk 0:02:15]}  Ne5 {[%clk 0:02:09]} 16. Nxe5 {[%clk 0:02:12]}  Bxe5 {[%clk 0:02:09]} 17. Bc5+ {[%clk 0:02:08]}  Bd6 {[%clk 0:02:08]} 18. Kg2 {[%clk 0:02:06]}  b6 {[%clk 0:01:30]} 19. Bd4 {[%clk 0:02:03]}  Kg8 {[%clk 0:01:25]} 20. Re2 {[%clk 0:02:00]}  Kh7 {[%clk 0:01:06]} 21. Rhe1 {[%clk 0:02:00]}  Rf8 {[%clk 0:01:01]} 22. Nb5 {[%clk 0:01:40]}  a6 {[%clk 0:00:58]} 23. Nxd6 {[%clk 0:01:36]}  Qxd6 {[%clk 0:00:58]} 24. Bxf6 {[%clk 0:01:36]}  Qxf6 {[%clk 0:00:41]} 25. Qxc7 {[%clk 0:01:36]}  Rad8 {[%clk 0:00:39]} 26. Re7 {[%clk 0:01:35]}  Qxb2 {[%clk 0:00:34]} 27. Rxf7 {[%clk 0:01:32]}  Rxf7 {[%clk 0:00:34]} 28. Qxf7 {[%clk 0:01:33]}  Qd4 {[%clk 0:00:32]} 29. Qf5+ {[%clk 0:01:31]}  Kh8 {[%clk 0:00:31]} 30. Re5 {[%clk 0:01:28]}  b5 {[%clk 0:00:30]} 31. h4 {[%clk 0:01:27]}  b4 {[%clk 0:00:29]} 32. g4 {[%clk 0:01:20]}  a5 {[%clk 0:00:25]} 33. Kg3 {[%clk 0:01:16]}  a4 {[%clk 0:00:19]} 34. g5 {[%clk 0:01:16]}  h5 {[%clk 0:00:19]} 35. g6 {[%clk 0:01:16]}  Qg4+ {[%clk 0:00:16]} 36. Qxg4 {[%clk 0:01:16]}  hxg4 {[%clk 0:00:16]} 37. Re4 {[%clk 0:01:08]}  Rb8 {[%clk 0:00:14]} 38. d6 {[%clk 0:01:08]}  Kg8 {[%clk 0:00:13]} 39. d7 {[%clk 0:01:08]}  Kf8 {[%clk 0:00:14]} 40. Rxb4 {[%clk 0:01:08]}  Rd8 {[%clk 0:00:12]} 41. Rxa4 {[%clk 0:01:07]}  Rxd7 {[%clk 0:00:13]} 42. Rf4+ {[%clk 0:01:08]}  Kg8 {[%clk 0:00:12]} 43. Kxg4 {[%clk 0:01:07]} 1-0


[Site "https://www.chess.com"]

[Event "Titled Tuesday Blitz January 31 Early 2023"]
[White "Lortkipanidze, Nodar"]
[Black "Jimenez Almeida, Luis David"]
[WhiteFideId "13604058"]
[BlackFideId "22242244"]
[WhiteElo "2406"]
[BlackElo "2242"]
[Result "0-1"]
[Round "02"]
[TimeControl "180+2"]
[Date "2023.01.31"]
[WhiteClock "0:00:41"]
[BlackClock "0:00:23"]

1. e4 {[%clk 0:02:55]}  c6 {[%clk 0:02:59]} 2. Nc3 {[%clk 0:02:51]}  g6 {[%clk 0:02:58]} 3. d4 {[%clk 0:02:50]}  Bg7 {[%clk 0:02:58]} 4. Nf3 {[%clk 0:02:50]}  d6 {[%clk 0:02:57]} 5. a4 {[%clk 0:02:45]}  a5 {[%clk 0:02:55]} 6. Bc4 {[%clk 0:02:44]}  Nf6 {[%clk 0:02:54]} 7. e5 {[%clk 0:02:42]}  dxe5 {[%clk 0:02:45]} 8. Nxe5 {[%clk 0:02:43]}  O-O {[%clk 0:02:44]} 9. O-O {[%clk 0:02:42]}  Na6 {[%clk 0:02:42]} 10. Re1 {[%clk 0:02:21]}  Nc7 {[%clk 0:02:42]} 11. Ne2 {[%clk 0:02:17]}  Be6 {[%clk 0:02:39]} 12. Bd3 {[%clk 0:02:17]}  Ncd5 {[%clk 0:02:38]} 13. c3 {[%clk 0:02:11]}  Qc8 {[%clk 0:02:29]} 14. Bg5 {[%clk 0:02:03]}  Rd8 {[%clk 0:02:25]} 15. Qc2 {[%clk 0:02:01]}  Bf5 {[%clk 0:02:20]} 16. Bxf5 {[%clk 0:01:59]}  Qxf5 {[%clk 0:02:20]} 17. Qxf5 {[%clk 0:02:00]}  gxf5 {[%clk 0:02:21]} 18. Bxf6 {[%clk 0:01:54]}  Bxf6 {[%clk 0:02:20]} 19. Nd3 {[%clk 0:01:54]}  e6 {[%clk 0:02:13]} 20. Ra3 {[%clk 0:01:54]}  Nb6 {[%clk 0:01:56]} 21. Rb3 {[%clk 0:01:50]}  Nxa4 {[%clk 0:01:56]} 22. Rxb7 {[%clk 0:01:46]}  Rab8 {[%clk 0:01:56]} 23. Rxb8 {[%clk 0:01:42]}  Rxb8 {[%clk 0:01:56]} 24. Ra1 {[%clk 0:01:42]}  Nxb2 {[%clk 0:01:37]} 25. Rb1 {[%clk 0:01:40]}  a4 {[%clk 0:01:37]} 26. Nb4 {[%clk 0:01:17]}  Nd3 {[%clk 0:01:22]} 27. Kf1 {[%clk 0:01:09]}  a3 {[%clk 0:01:14]} 28. g3 {[%clk 0:01:03]}  Nxb4 {[%clk 0:00:51]} 29. cxb4 {[%clk 0:01:03]}  Be7 {[%clk 0:00:51]} 30. Nc3 {[%clk 0:01:01]}  Rxb4 {[%clk 0:00:50]} 31. Rxb4 {[%clk 0:00:59]}  Bxb4 {[%clk 0:00:51]} 32. Na2 {[%clk 0:01:00]}  Bd6 {[%clk 0:00:50]} 33. Ke2 {[%clk 0:01:01]}  c5 {[%clk 0:00:49]} 34. Kd3 {[%clk 0:00:58]}  cxd4 {[%clk 0:00:49]} 35. Kxd4 {[%clk 0:00:59]}  Kg7 {[%clk 0:00:48]} 36. f4 {[%clk 0:00:59]}  h5 {[%clk 0:00:47]} 37. Nc3 {[%clk 0:00:57]}  Be7 {[%clk 0:00:44]} 38. Kc4 {[%clk 0:00:57]}  h4 {[%clk 0:00:43]} 39. Kb3 {[%clk 0:00:57]}  hxg3 {[%clk 0:00:43]} 40. hxg3 {[%clk 0:00:57]}  Kh6 {[%clk 0:00:43]} 41. Nd1 {[%clk 0:00:54]}  Kh5 {[%clk 0:00:42]} 42. Nf2 {[%clk 0:00:54]}  Bc5 {[%clk 0:00:42]} 43. Nd3 {[%clk 0:00:55]}  Bf8 {[%clk 0:00:39]} 44. Ne5 {[%clk 0:00:55]}  f6 {[%clk 0:00:37]} 45. Nd7 {[%clk 0:00:44]}  Be7 {[%clk 0:00:37]} 46. Nb8 {[%clk 0:00:44]}  Kg4 {[%clk 0:00:37]} 47. Nc6 {[%clk 0:00:45]}  Bd6 {[%clk 0:00:35]} 48. Nd8 {[%clk 0:00:43]}  e5 {[%clk 0:00:34]} 49. Nf7 {[%clk 0:00:43]}  exf4 {[%clk 0:00:19]} 50. gxf4 {[%clk 0:00:38]}  Bxf4 {[%clk 0:00:20]} 51. Kxa3 {[%clk 0:00:39]}  Be3 {[%clk 0:00:20]} 52. Kb3 {[%clk 0:00:39]}  f4 {[%clk 0:00:21]} 53. Kc2 {[%clk 0:00:39]}  f3 {[%clk 0:00:21]} 54. Kd3 {[%clk 0:00:40]}  Kg3 {[%clk 0:00:18]} 55. Nd6 {[%clk 0:00:38]}  Ba7 {[%clk 0:00:17]} 56. Ne4+ {[%clk 0:00:37]}  Kg2 {[%clk 0:00:18]} 57. Nd2 {[%clk 0:00:34]}  f2 {[%clk 0:00:18]} 58. Ke4 {[%clk 0:00:34]}  f1=Q {[%clk 0:00:17]} 59. Nxf1 {[%clk 0:00:35]}  Kxf1 {[%clk 0:00:18]} 60. Kf4 {[%clk 0:00:35]}  Bd4 {[%clk 0:00:18]} 61. Ke4 {[%clk 0:00:36]}  Ba1 {[%clk 0:00:19]} 62. Kf5 {[%clk 0:00:37]}  Kg2 {[%clk 0:00:19]} 63. Ke4 {[%clk 0:00:38]}  Kg3 {[%clk 0:00:20]} 64. Kf5 {[%clk 0:00:39]}  Kh4 {[%clk 0:00:20]} 65. Kg6 {[%clk 0:00:39]}  Kg4 {[%clk 0:00:21]} 66. Kf7 {[%clk 0:00:40]}  f5 {[%clk 0:00:22]} 67. Ke6 {[%clk 0:00:41]}  f4 {[%clk 0:00:23]} 0-1


[Site "https://www.chess.com"]

[Event "Titled Tuesday Blitz January 31 Early 2023"]
[White "Azarov, Sergei"]
[Black "Ongut, Tamas Gunes"]
[WhiteFideId "13501470"]
[BlackFideId "770280"]
[WhiteElo "2582"]
[BlackElo "2299"]
[Result "1-0"]
[Round "02"]
[TimeControl "180+2"]
[Date "2023.01.31"]
[WhiteClock "0:00:32"]
[BlackClock "0:00:05"]

1. e4 {[%clk 0:02:39]}  e5 {[%clk 0:02:59]} 2. Nf3 {[%clk 0:02:36]}  Nc6 {[%clk 0:02:58]} 3. Bb5 {[%clk 0:02:36]}  a6 {[%clk 0:02:57]} 4. Ba4 {[%clk 0:02:36]}  d6 {[%clk 0:02:55]} 5. Bxc6+ {[%clk 0:02:36]}  bxc6 {[%clk 0:02:55]} 6. d4 {[%clk 0:02:36]}  exd4 {[%clk 0:02:51]} 7. Qxd4 {[%clk 0:02:37]}  Nf6 {[%clk 0:02:47]} 8. Bg5 {[%clk 0:02:30]}  Be7 {[%clk 0:02:46]} 9. e5 {[%clk 0:02:19]}  dxe5 {[%clk 0:02:29]} 10. Qxd8+ {[%clk 0:02:17]}  Bxd8 {[%clk 0:02:30]} 11. Nxe5 {[%clk 0:02:15]}  O-O {[%clk 0:02:29]} 12. O-O {[%clk 0:02:14]}  Bb7 {[%clk 0:01:41]} 13. Nc3 {[%clk 0:02:13]}  Be7 {[%clk 0:01:38]} 14. Bxf6 {[%clk 0:02:09]}  Bxf6 {[%clk 0:01:34]} 15. Nd7 {[%clk 0:02:09]}  Bxc3 {[%clk 0:01:27]} 16. Nxf8 {[%clk 0:02:09]}  Bb4 {[%clk 0:01:21]} 17. Nd7 {[%clk 0:02:05]}  Bd6 {[%clk 0:01:16]} 18. b4 {[%clk 0:02:03]}  a5 {[%clk 0:01:14]} 19. Nc5 {[%clk 0:01:58]}  Bc8 {[%clk 0:01:00]} 20. a3 {[%clk 0:01:58]}  Rb8 {[%clk 0:00:57]} 21. c3 {[%clk 0:01:55]}  Bxc5 {[%clk 0:00:55]} 22. bxc5 {[%clk 0:01:55]}  f6 {[%clk 0:00:52]} 23. Rab1 {[%clk 0:01:53]}  Rb5 {[%clk 0:00:48]} 24. Rxb5 {[%clk 0:01:50]}  cxb5 {[%clk 0:00:48]} 25. Rb1 {[%clk 0:01:37]}  Bd7 {[%clk 0:00:41]} 26. Rd1 {[%clk 0:01:37]}  Be6 {[%clk 0:00:37]} 27. f3 {[%clk 0:01:33]}  Kf7 {[%clk 0:00:36]} 28. Kf2 {[%clk 0:01:34]}  Ke7 {[%clk 0:00:36]} 29. Ke3 {[%clk 0:01:33]}  Bb3 {[%clk 0:00:31]} 30. Rd2 {[%clk 0:01:31]}  Bc4 {[%clk 0:00:27]} 31. g4 {[%clk 0:01:27]}  h6 {[%clk 0:00:25]} 32. f4 {[%clk 0:01:25]}  Be6 {[%clk 0:00:22]} 33. h3 {[%clk 0:01:24]}  Bd7 {[%clk 0:00:22]} 34. Ke4 {[%clk 0:01:20]}  Ke6 {[%clk 0:00:20]} 35. f5+ {[%clk 0:01:16]}  Ke7 {[%clk 0:00:21]} 36. Kd5 {[%clk 0:01:13]}  c6+ {[%clk 0:00:21]} 37. Ke4 {[%clk 0:01:14]}  Be8 {[%clk 0:00:21]} 38. Rd6 {[%clk 0:01:13]}  Bd7 {[%clk 0:00:20]} 39. Kf4 {[%clk 0:01:13]}  Ke8 {[%clk 0:00:21]} 40. h4 {[%clk 0:01:13]}  Ke7 {[%clk 0:00:21]} 41. g5 {[%clk 0:01:12]}  hxg5+ {[%clk 0:00:22]} 42. hxg5 {[%clk 0:01:12]}  Be8 {[%clk 0:00:23]} 43. Re6+ {[%clk 0:01:08]}  Kf7 {[%clk 0:00:21]} 44. gxf6 {[%clk 0:00:59]}  gxf6 {[%clk 0:00:21]} 45. Re3 {[%clk 0:00:57]}  Bd7 {[%clk 0:00:20]} 46. Rd3 {[%clk 0:00:57]}  Ke7 {[%clk 0:00:20]} 47. Rh3 {[%clk 0:00:57]}  Be8 {[%clk 0:00:20]} 48. Rh7+ {[%clk 0:00:56]}  Bf7 {[%clk 0:00:20]} 49. Rh8 {[%clk 0:00:56]}  Be8 {[%clk 0:00:20]} 50. Ke4 {[%clk 0:00:55]}  Kd8 {[%clk 0:00:19]} 51. Rh7 {[%clk 0:00:55]}  a4 {[%clk 0:00:11]} 52. Rg7 {[%clk 0:00:52]}  Kc8 {[%clk 0:00:09]} 53. Kf4 {[%clk 0:00:38]}  Kd8 {[%clk 0:00:09]} 54. Kg4 {[%clk 0:00:37]}  Bd7 {[%clk 0:00:08]} 55. Rf7 {[%clk 0:00:32]}  Ke8 {[%clk 0:00:04]} 56. Rxf6 {[%clk 0:00:32]}  Ke7 {[%clk 0:00:05]} 57. Rd6 {[%clk 0:00:32]} 1-0


[Site "https://www.chess.com"]